[Event "XVI Memorial Lezcano Montalvo 2024"]
[Site "Gran Canaria"]
[Date "2024.03.23"]
[Round "1.27"]
[White "Gonzalez Martinez, Miguel Angel"]
[Black "Matos Guedes, Silverio"]
[Result "1-0"]
[ECO "C64"]
[WhiteElo "2158"]
[BlackElo "1675"]
[Annotator "RC"]
[PlyCount "46"]
[EventDate "2024.03.23"]
[EventType "swiss"]
[EventCountry "ESP"]
[SourceTitle "playchess.com"]
[Source "ChessBase"]
[SourceQuality "1"]
[TimeControl "5400+30"]

1. e4 {[%emt 0:00:07]} e5 {[%emt 0:00:17]} 2. Nf3 {[%emt 0:00:11]} Nc6 {[%emt 0:00:11]} 3. Bb5 {[%emt 0:00:42]} Bc5 {[%emt 0:00:54]} 4. c3 {[%emt 0:01:36]} d6 {[%emt 0:00:42]} 5. d4 {[%emt 0:00:57]} exd4 {[%emt 0:00:17]} 6. cxd4 {[%emt 0:00:01]} Bb4+ {[%emt 0:00:20]} 7. Nc3 {[%emt 0:00:25]} Bd7 {[%emt 0:00:38]} 8. O-O {[%emt 0:00:28]} Nge7 {[%emt 0:00:43]} 9. Bg5 {[%emt 0:08:55]} h6 {[%emt 0:03:45]} 10. Bh4 {[%emt 0:02:05]} Bxc3 {[%emt 0:05:39]} 11. bxc3 {[%emt 0:00:20]} g5 {[%emt 0:01:46]} 12. Bg3 {[%emt 0:03:04]} a6 {[%emt 0:01:26]} 13. Bc4 {[%emt 0:08:27]} Bg4 {[%emt 0:01:37]} 14. Qb3 {[%emt 0:03:56]} O-O {[%emt 0:04:38]} 15. Bd3 {[%emt 0:04:03]} d5 {[%emt 0:04:41]} 16. Ne5 {[%emt 0:02:06]} Nxe5 {[%emt 0:04:10]} 17. Bxe5 {[%emt 0:01:32]} f6 {[%emt 0:02:31]} 18. Bg3 {[%emt 0:02:32]} Kg7 {[%emt 0:00:25]} 19. Qxb7 {[%emt 0:02:10]} dxe4 {[%emt 0:04:15]} 20. Bxe4 {[%emt 0:00:53]} Rc8 {[%emt 0:05:46]} 21. Rfe1 {[%emt 0:03:20]} c6 {[%emt 0:05:22]} 22. Bf3 {[%emt 0:06:49]} Bd7 {[%emt 0:51:27]} 23. Bd6 {[%emt 0:47:21]} Re8 {[%emt 0:00:00]} 1-0

[Event "XVI Memorial Lezcano Montalvo 2024"]
[Site "Gran Canaria"]
[Date "2024.03.23"]
[Round "1.28"]
[White "Roca Marrero, Fernando"]
[Black "Marrero Cardenes, Agustin"]
[Result "0-1"]
[ECO "D02"]
[WhiteElo "1666"]
[BlackElo "2093"]
[Annotator "RC"]
[PlyCount "56"]
[EventDate "2024.03.23"]
[EventType "swiss"]
[EventCountry "ESP"]
[SourceTitle "playchess.com"]
[Source "ChessBase"]
[SourceQuality "1"]
[TimeControl "5400+30"]

1. d4 {[%emt 0:00:04]} Nf6 {[%emt 0:00:04]} 2. Nf3 {[%emt 0:00:29]} e6 {[%emt 0:00:10]} 3. Bf4 {[%emt 1:31:27]} c5 {[%emt 1:31:46]} 4. e3 {[%emt 0:00:00]} d5 {[%emt 0:00:00]} 5. Nbd2 {[%emt 0:01:00]} Nc6 {[%emt 0:01:00]} 6. c3 {[%emt 0:00:30]} Bd6 {[%emt 0:00:30]} 7. Ne5 {[%emt 0:00:30]} Qc7 {[%emt 0:00:30]} 8. Ndf3 {[%emt 0:00:00]} Nd7 {[%emt 0:00:30]} 9. Nxf7 {[%emt 0:01:00]} Kxf7 {[%emt 0:00:30]} 10. Ng5+ {[%emt 0:00:30]} Ke7 {[%emt 0:00:30]} 11. Nxe6 {[%emt 0:00:30]} Kxe6 {[%emt 0:00:30]} 12. Qg4+ {[%emt 0:00:30]} Kf7 {[%emt 0:00:30]} 13. Qh5+ {[%emt 0:00:30]} Kf8 {[%emt 0:00:30]} 14. Qxd5 {[%emt 0:00:30]} Bxf4 {[%emt 0:00:30]} 15. Bc4 {[%emt 0:00:30]} Nf6 {[%emt 0:00:30]} 16. Qxc5+ {[%emt 0:00:30]} Bd6 {[%emt 0:00:30]} 17. Qg5 {[%emt 0:00:30]} Nxd4 {[%emt 0:00:30]} 18. O-O-O {[%emt 0:00:30]} Qxc4 {[%emt 0:00:30]} 19. Rxd4 {[%emt 0:00:30]} Qc5 {[%emt 0:00:30]} 20. Qh4 {[%emt 0:00:30]} Be6 {[%emt 0:00:30]} 21. Rhd1 {[%emt 0:00:30]} Be7 {[%emt 0:00:00]} 22. Qg3 {[%emt 0:00:00]} Kf7 {[%emt 0:00:00]} 23. Qf3 {[%emt 0:00:00]} b5 {[%emt 0:00:00]} 24. Kb1 {[%emt 0:00:00]} Rhd8 {[%emt 0:00:00]} 25. Qb7 {[%emt 0:00:00]} Rxd4 {[%emt 0:00:00]} 26. Rxd4 {[%emt 0:00:00]} Rc8 {[%emt 0:00:00]} 27. Qf3 {[%emt 0:00:00]} a5 {[%emt 0:00:00]} 28. Qd1 {[%emt 0:00:00]} Qf5+ {[%emt 0:04:00]} 0-1

[Event "XVI Memorial Lezcano Montalvo 2024"]
[Site "Gran Canaria"]
[Date "2024.03.23"]
[Round "1.29"]
[White "Lopez Pereyra, Antonio"]
[Black "John, Linnea"]
[Result "1-0"]
[ECO "B36"]
[WhiteElo "2069"]
[BlackElo "1663"]
[Annotator "RC"]
[PlyCount "72"]
[EventDate "2024.03.23"]
[EventType "swiss"]
[EventCountry "ESP"]
[SourceTitle "playchess.com"]
[Source "ChessBase"]
[SourceQuality "1"]
[TimeControl "5400+30"]

1. e4 {[%emt 0:00:46]} c5 {[%emt 0:00:03]} 2. Nf3 {[%emt 0:00:08]} Nc6 {[%emt 0:00:04]} 3. d4 {[%emt 0:00:17]} cxd4 {[%emt 0:00:05]} 4. Nxd4 {[%emt 0:00:07]} g6 {[%emt 0:00:06]} 5. c4 {[%emt 0:01:01]} Nf6 {[%emt 0:01:14]} 6. Nc3 {[%emt 0:01:00]} Nxd4 {[%emt 0:01:53]} 7. Qxd4 {[%emt 0:00:12]} d6 {[%emt 0:01:46]} 8. Be2 {[%emt 0:01:28]} Bg7 {[%emt 0:00:42]} 9. Bg5 {[%emt 0:00:54]} O-O {[%emt 0:00:48]} 10. Qd2 {[%emt 0:00:46]} Be6 {[%emt 0:01:21]} 11. Rc1 {[%emt 0:03:46]} Qa5 {[%emt 0:03:29]} 12. f3 {[%emt 0:09:52]} Rfc8 {[%emt 0:04:01]} 13. b3 {[%emt 0:02:18]} a6 {[%emt 0:06:13]} 14. Na4 {[%emt 0:13:15]} Qxd2+ {[%emt 0:03:32]} 15. Kxd2 {[%emt 0:00:17]} Rc6 {[%emt 0:03:10]} 16. Be3 {[%emt 0:14:18]} Rac8 {[%emt 0:03:23]} 17. Nb6 {[%emt 0:05:14]} Rd8 {[%emt 0:05:12]} 18. a4 {[%emt 0:03:16]} Nd7 {[%emt 0:09:28]} 19. Nd5 {[%emt 0:03:11]} Bxd5 {[%emt 0:02:50]} 20. cxd5 {[%emt 0:00:11]} Rcc8 {[%emt 0:02:13]} 21. b4 {[%emt 0:02:21]} Bb2 {[%emt 0:02:46]} 22. Rc2 {[%emt 0:00:12]} Rxc2+ {[%emt 0:07:12]} 23. Kxc2 {[%emt 0:00:04]} Bg7 {[%emt 0:00:26]} 24. Kb3 {[%emt 0:08:00]} Rc8 {[%emt 0:02:10]} 25. Rc1 {[%emt 0:00:14]} Rxc1 {[%emt 0:00:47]} 26. Bxc1 {[%emt 0:00:02]} Ne5 {[%emt 0:04:16]} 27. Be3 {[%emt 0:01:20]} h5 {[%emt 0:04:08]} 28. b5 {[%emt 0:00:15]} axb5 {[%emt 0:05:36]} 29. Bxb5 {[%emt 0:00:35]} h4 {[%emt 0:05:00]} 30. h3 {[%emt 0:00:33]} Bf6 {[%emt 0:01:03]} 31. f4 {[%emt 0:00:28]} Kf8 {[%emt 0:02:25]} 32. fxe5 {[%emt 0:00:15]} Bxe5 {[%emt 0:00:37]} 33. a5 {[%emt 0:00:23]} e6 {[%emt 0:00:39]} 34. Bc6 {[%emt 0:30:31]} bxc6 {[%emt 0:00:51]} 35. a6 {[%emt 0:00:00]} cxd5 {[%emt 0:01:23]} 36. a7 {[%emt 0:00:00]} Ke8 {[%emt 0:17:38]} 1-0

[Event "XVI Memorial Lezcano Montalvo 2024"]
[Site "Gran Canaria"]
[Date "2024.03.23"]
[Round "1.30"]
[White "Sanchez Arencibia, Heriberto"]
[Black "Perez Bolanos, David"]
[Result "0-1"]
[ECO "D03"]
[WhiteElo "1636"]
[BlackElo "2053"]
[Annotator "RC"]
[PlyCount "64"]
[EventDate "2024.03.23"]
[EventType "swiss"]
[EventCountry "ESP"]
[SourceTitle "playchess.com"]
[Source "ChessBase"]
[SourceQuality "1"]
[TimeControl "5400+30"]

1. d4 {[%emt 1:31:00]} d5 {[%emt 1:31:00]} 2. Nf3 {[%emt 0:00:30]} Nf6 {[%emt 0:00:30]} 3. Bg5 {[%emt 0:00:30]} Ne4 {[%emt 0:00:30]} 4. Bf4 {[%emt 0:00:30]} c5 {[%emt 0:00:30]} 5. e3 {[%emt 0:00:30]} Qb6 {[%emt 0:00:30]} 6. Qc1 {[%emt 0:00:30]} Nc6 {[%emt 0:00:30]} 7. c3 {[%emt 0:00:30]} e6 {[%emt 0:00:30]} 8. Nbd2 {[%emt 0:00:30]} Nxd2 {[%emt 0:00:30]} 9. Qxd2 {[%emt 0:00:30]} c4 {[%emt 0:00:30]} 10. Be2 {[%emt 0:00:30]} Be7 {[%emt 0:00:30]} 11. O-O {[%emt 0:00:30]} O-O {[%emt 0:00:30]} 12. Ne5 {[%emt 0:00:30]} Nxe5 {[%emt 0:00:30]} 13. Bxe5 {[%emt 0:00:30]} Qc6 {[%emt 0:00:30]} 14. Rae1 {[%emt 0:00:30]} b5 {[%emt 0:00:30]} 15. a3 {[%emt 0:00:30]} a5 {[%emt 0:00:30]} 16. Bf3 {[%emt 0:00:30]} f5 {[%emt 0:00:30]} 17. g4 {[%emt 0:00:30]} b4 {[%emt 0:00:30]} 18. Kh1 {[%emt 0:00:30]} bxa3 {[%emt 0:00:30]} 19. bxa3 {[%emt 0:00:30]} Bxa3 {[%emt 0:00:30]} 20. Rg1 {[%emt 0:00:30]} Bd6 {[%emt 0:00:30]} 21. gxf5 {[%emt 0:00:30]} Bxe5 {[%emt 0:00:30]} 22. dxe5 {[%emt 0:00:30]} Rxf5 {[%emt 0:00:30]} 23. Bg4 {[%emt 0:00:30]} Rf7 {[%emt 0:00:30]} 24. Rg3 {[%emt 0:00:30]} a4 {[%emt 0:00:30]} 25. f3 {[%emt 0:00:30]} a3 {[%emt 0:00:30]} 26. e4 {[%emt 0:00:30]} Bb7 {[%emt 0:00:30]} 27. Bh5 {[%emt 0:00:30]} Re7 {[%emt 0:00:30]} 28. Reg1 {[%emt 0:00:30]} Qd7 {[%emt 0:00:30]} 29. Qc2 {[%emt 0:00:30]} dxe4 {[%emt 0:00:30]} 30. Rh3 {[%emt 0:00:30]} a2 {[%emt 0:00:30]} 31. Ra1 {[%emt 0:00:30]} Qd3 {[%emt 0:00:30]} 32. Rxa2 {[%emt 0:00:30]} Qf1# {[%emt 0:00:30]} 0-1

[Event "XVI Memorial Lezcano Montalvo 2024"]
[Site "Gran Canaria"]
[Date "2024.03.23"]
[Round "1.32"]
[White "Richter, Anastasia"]
[Black "Lizzul Coppe, Mirko"]
[Result "0-1"]
[ECO "B53"]
[WhiteElo "1614"]
[BlackElo "2027"]
[Annotator "RC"]
[PlyCount "83"]
[EventDate "2024.03.23"]
[EventType "swiss"]
[EventCountry "ESP"]
[SourceTitle "playchess.com"]
[Source "ChessBase"]
[SourceQuality "1"]
[TimeControl "5400+30"]

1. e4 {[%emt 0:00:02]} c5 {[%emt 0:00:02]} 2. Nf3 {[%emt 0:00:07]} d6 {[%emt 0:00:01]} 3. d4 {[%emt 0:00:06]} cxd4 {[%emt 0:00:02]} 4. Qxd4 {[%emt 0:00:06]} Nf6 {[%emt 0:00:28]} 5. Nc3 {[%emt 0:01:14]} a6 {[%emt 0:02:24]} 6. Bg5 {[%emt 0:04:20]} Nc6 {[%emt 0:08:35]} 7. Qd3 {[%emt 0:03:05]} Bd7 {[%emt 0:04:36]} 8. O-O-O {[%emt 0:03:28]} Rc8 {[%emt 0:02:21]} 9. Kb1 {[%emt 0:04:25]} b5 {[%emt 0:07:20]} 10. Nd5 {[%emt 0:16:25]} e6 {[%emt 0:06:18]} 11. e5 {[%emt 0:14:55]} exd5 {[%emt 0:06:18]} 12. exf6 {[%emt 0:02:18]} gxf6 {[%emt 0:00:14]} 13. Bh4 {[%emt 0:03:36]} Be6 {[%emt 0:04:20]} 14. a3 {[%emt 0:08:27]} Ne5 {[%emt 0:08:47]} 15. Qe3 {[%emt 0:03:45]} Be7 {[%emt 0:02:24]} 16. Nd4 {[%emt 0:03:13]} Qd7 {[%emt 0:07:33]} 17. Re1 {[%emt 0:13:56]} f5 {[%emt 0:09:11]} 18. Bxe7 {[%emt 0:02:24]} Qxe7 {[%emt 0:00:31]} 19. a4 {[%emt 0:02:52]} O-O {[%emt 0:09:01]} 20. Qg3+ {[%emt 0:05:13]} Kh8 {[%emt 0:03:32]} 21. f4 {[%emt 0:01:51]} Nc4 {[%emt 0:01:39]} 22. Qc3 {[%emt 0:05:42]} Qf6 {[%emt 0:00:50]} 23. Nxe6 {[%emt 0:00:00]} Qxc3 {[%emt 0:01:19]} 24. bxc3 {[%emt 0:00:00]} fxe6 {[%emt 0:00:15]} 25. Rxe6 {[%emt 0:00:32]} bxa4 {[%emt 0:00:27]} 26. Bxc4 {[%emt 0:00:36]} Rxc4 {[%emt 0:00:22]} 27. Rxd6 {[%emt 0:00:33]} Rb8+ {[%emt 0:00:24]} 28. Ka2 {[%emt 0:00:35]} Rxc3 {[%emt 0:01:21]} 29. Rc1 {[%emt 0:00:31]} d4 {[%emt 0:07:46]} 30. Rxd4 {[%emt 0:00:25]} a3 {[%emt 0:00:02]} 31. Ra4 {[%emt 0:00:42]} Rb2+ {[%emt 0:00:01]} 32. Ka1 {[%emt 0:00:01]} Rcxc2 {[%emt 0:01:13]} 33. Rxc2 {[%emt 0:00:12]} Rxc2 {[%emt 0:00:02]} 34. Rxa3 {[%emt 0:00:56]} Rxg2 {[%emt 0:00:16]} 35. Ra2 {[%emt 0:00:30]} Rg1+ {[%emt 0:00:40]} 36. Kb2 {[%emt 0:00:05]} Rg2+ {[%emt 0:00:06]} 37. Kb3 {[%emt 0:00:18]} Rxa2 {[%emt 0:00:17]} 38. Kxa2 {[%emt 0:00:01]} Kg7 {[%emt 0:00:09]} 39. Kb3 {[%emt 0:00:33]} Kh6 {[%emt 0:00:10]} 40. Kc4 {[%emt 0:00:31]} Kh5 {[%emt 0:00:12]} 41. Kd5 {[%emt 0:00:36]} a5 {[%emt 0:00:33]} 42. Kd4 {[%emt 0:01:27]} 0-1

[Event "XVI Memorial Lezcano Montalvo 2024"]
[Site "Gran Canaria"]
[Date "2024.03.23"]
[Round "1.33"]
[White "Mendez Acosta, Alexander Jesus"]
[Black "Monteiro Rodrigues, Carlos"]
[Result "1-0"]
[ECO "A25"]
[WhiteElo "2025"]
[BlackElo "1608"]
[Annotator "RC"]
[PlyCount "48"]
[EventDate "2024.03.23"]
[EventType "swiss"]
[EventCountry "ESP"]
[SourceTitle "playchess.com"]
[Source "ChessBase"]
[SourceQuality "1"]
[TimeControl "5400+30"]

1. c4 {[%emt 0:00:13]} e5 {[%emt 0:00:36]} 2. Nc3 {[%emt 0:00:36]} Nc6 {[%emt 0:00:37]} 3. g3 {[%emt 0:00:32]} Nf6 {[%emt 0:00:48]} 4. Bg2 {[%emt 0:00:36]} Bc5 {[%emt 0:00:54]} 5. d3 {[%emt 0:01:53]} h6 {[%emt 0:01:59]} 6. e3 {[%emt 0:02:21]} O-O {[%emt 0:01:12]} 7. Nge2 {[%emt 0:00:54]} a6 {[%emt 0:00:32]} 8. O-O {[%emt 0:00:25]} d6 {[%emt 0:01:18]} 9. a3 {[%emt 0:03:08]} Ba7 {[%emt 0:01:26]} 10. b4 {[%emt 0:04:24]} Ne7 {[%emt 0:03:45]} 11. Bb2 {[%emt 0:06:22]} Re8 {[%emt 0:02:36]} 12. d4 {[%emt 0:06:42]} Ng6 {[%emt 0:01:33]} 13. Qc2 {[%emt 0:04:50]} Rb8 {[%emt 0:02:50]} 14. Rfd1 {[%emt 0:10:18]} Bg4 {[%emt 0:02:39]} 15. h3 {[%emt 0:02:15]} Be6 {[%emt 0:04:10]} 16. c5 {[%emt 0:10:23]} Qc8 {[%emt 0:00:37]} 17. Kh2 {[%emt 0:02:17]} Bf5 {[%emt 0:01:01]} 18. e4 {[%emt 0:09:16]} Bd7 {[%emt 0:01:20]} 19. dxe5 {[%emt 0:03:24]} Nxe5 {[%emt 0:00:26]} 20. Nf4 {[%emt 0:09:37]} dxc5 {[%emt 0:04:48]} 21. Ncd5 {[%emt 0:00:48]} c6 {[%emt 0:03:33]} 22. Nxf6+ {[%emt 0:01:01]} gxf6 {[%emt 0:00:13]} 23. Nh5 {[%emt 0:00:42]} Qd8 {[%emt 0:02:12]} 24. f4 {[%emt 0:01:35]} Qe7 {[%emt 0:03:52]} 1-0

[Event "XVI Memorial Lezcano Montalvo 2024"]
[Site "Gran Canaria"]
[Date "2024.03.23"]
[Round "1.34"]
[White "Juan Miguel, Javier"]
[Black "Sarmiento Afonso, Santiago"]
[Result "0-1"]
[ECO "A45"]
[WhiteElo "1597"]
[BlackElo "2023"]
[Annotator "RC"]
[PlyCount "78"]
[EventDate "2024.03.23"]
[EventType "swiss"]
[EventCountry "ESP"]
[SourceTitle "playchess.com"]
[Source "ChessBase"]
[SourceQuality "1"]
[TimeControl "5400+30"]

1. d4 {[%emt 0:00:05]} Nf6 {[%emt 0:00:44]} 2. e3 {[%emt 0:00:23]} e6 {[%emt 0:00:00]} 3. Bd3 {[%emt 0:00:32]} c5 {[%emt 0:00:03]} 4. b3 {[%emt 0:01:10]} Nc6 {[%emt 0:01:33]} 5. Bb2 {[%emt 0:03:26]} b6 {[%emt 0:03:01]} 6. Nf3 {[%emt 0:01:38]} Bb7 {[%emt 0:00:13]} 7. a3 {[%emt 0:01:29]} Qc7 {[%emt 0:01:33]} 8. Nbd2 {[%emt 0:02:43]} d6 {[%emt 0:02:16]} 9. c4 {[%emt 0:00:57]} Be7 {[%emt 0:00:00]} 10. Rc1 {[%emt 0:01:22]} O-O {[%emt 0:02:34]} 11. O-O {[%emt 0:02:38]} cxd4 {[%emt 0:05:27]} 12. exd4 {[%emt 0:00:33]} Nh5 {[%emt 0:01:42]} 13. d5 {[%emt 0:02:20]} Ne5 {[%emt 0:00:14]} 14. Nxe5 {[%emt 0:00:17]} Nf4 {[%emt 0:00:19]} 15. Ndf3 {[%emt 0:02:39]} dxe5 {[%emt 0:10:06]} 16. Bxe5 {[%emt 0:01:54]} Bd6 {[%emt 0:00:11]} 17. Bb2 {[%emt 0:04:24]} Qe7 {[%emt 0:04:30]} 18. Re1 {[%emt 0:02:47]} Bxa3 {[%emt 0:03:20]} 19. Bxa3 {[%emt 0:01:43]} Qxa3 {[%emt 0:00:10]} 20. Qd2 {[%emt 0:03:09]} Nxd3 {[%emt 0:07:10]} 21. Qxd3 {[%emt 0:00:09]} exd5 {[%emt 0:00:21]} 22. Ng5 {[%emt 0:01:02]} g6 {[%emt 0:01:26]} 23. Qh3 {[%emt 0:00:19]} h5 {[%emt 0:00:36]} 24. Qd7 {[%emt 0:00:15]} Rab8 {[%emt 0:10:35]} 25. Ra1 {[%emt 0:01:23]} Qc5 {[%emt 0:19:21]} 26. Re7 {[%emt 0:02:53]} Bc6 {[%emt 0:01:17]} 27. Qc7 {[%emt 0:02:01]} Rb7 {[%emt 0:02:08]} 28. Rxa7 {[%emt 0:02:08]} Rxc7 {[%emt 0:04:11]} 29. Rexc7 {[%emt 0:00:07]} Qd4 {[%emt 0:01:53]} 30. h4 {[%emt 0:01:16]} Qxh4 {[%emt 0:02:36]} 31. Nxf7 {[%emt 0:00:09]} Qf4 {[%emt 0:16:30]} 32. Rxc6 {[%emt 0:01:30]} Rxf7 {[%emt 0:00:00]} 33. Ra8+ {[%emt 0:00:10]} Kg7 {[%emt 0:00:00]} 34. f3 {[%emt 0:00:27]} dxc4 {[%emt 0:00:00]} 35. Rxc4 {[%emt 0:00:16]} Qe3+ {[%emt 0:00:00]} 36. Kh2 {[%emt 0:00:11]} Qxb3 {[%emt 0:00:00]} 37. Rcc8 {[%emt 0:00:08]} Rd7 {[%emt 0:00:00]} 38. Rg8+ {[%emt 0:00:13]} Qxg8 {[%emt 0:00:00]} 39. Rxg8+ {[%emt 0:00:08]} Kxg8 {[%emt 0:00:00]} 0-1

[Event "XVI Memorial Lezcano Montalvo 2024"]
[Site "Gran Canaria"]
[Date "2024.03.23"]
[Round "1.35"]
[White "Bergero, Simone"]
[Black "Martinez Correa, Rafael"]
[Result "1-0"]
[ECO "D31"]
[WhiteElo "2022"]
[BlackElo "1597"]
[Annotator "RC"]
[PlyCount "115"]
[EventDate "2024.03.23"]
[EventType "swiss"]
[EventCountry "ESP"]
[SourceTitle "playchess.com"]
[Source "ChessBase"]
[SourceQuality "1"]
[TimeControl "5400+30"]

1. d4 {[%emt 0:00:02]} d5 {[%emt 0:00:15]} 2. c4 {[%emt 0:00:05]} e6 {[%emt 0:00:09]} 3. Nc3 {[%emt 0:00:06]} a6 {[%emt 0:00:24]} 4. cxd5 {[%emt 0:00:11]} exd5 {[%emt 0:00:11]} 5. Bf4 {[%emt 0:00:04]} c6 {[%emt 0:00:57]} 6. e3 {[%emt 0:00:48]} Bd6 {[%emt 0:00:00]} 7. Bxd6 {[%emt 0:00:11]} Qxd6 {[%emt 0:00:00]} 8. Bd3 {[%emt 0:01:52]} Ne7 {[%emt 0:01:26]} 9. Nge2 {[%emt 0:03:58]} O-O {[%emt 0:01:05]} 10. Qc2 {[%emt 0:00:41]} h6 {[%emt 0:01:01]} 11. O-O-O {[%emt 0:03:05]} Nd7 {[%emt 0:02:50]} 12. Nf4 {[%emt 0:03:33]} c5 {[%emt 0:01:58]} 13. dxc5 {[%emt 0:00:17]} Nxc5 {[%emt 0:00:59]} 14. Nfxd5 {[%emt 0:01:31]} Nxd5 {[%emt 0:01:14]} 15. Nxd5 {[%emt 0:00:04]} Nxd3+ {[%emt 0:02:25]} 16. Qxd3 {[%emt 0:01:20]} Bd7 {[%emt 0:01:48]} 17. Nc3 {[%emt 0:00:55]} Qxd3 {[%emt 0:00:55]} 18. Rxd3 {[%emt 0:00:04]} Bc6 {[%emt 0:00:23]} 19. f3 {[%emt 0:00:08]} Rac8 {[%emt 0:02:58]} 20. Kb1 {[%emt 0:00:58]} Rfe8 {[%emt 0:00:56]} 21. Rhd1 {[%emt 0:00:25]} Re7 {[%emt 0:00:43]} 22. e4 {[%emt 0:00:32]} Rce8 {[%emt 0:00:57]} 23. Nd5 {[%emt 0:06:48]} Bxd5 {[%emt 0:00:56]} 24. Rxd5 {[%emt 0:00:30]} Rc7 {[%emt 0:01:17]} 25. Rd7 {[%emt 0:04:48]} Rec8 {[%emt 0:00:25]} 26. Rxc7 {[%emt 0:00:08]} Rxc7 {[%emt 0:00:08]} 27. Rc1 {[%emt 0:00:06]} Rd7 {[%emt 0:00:51]} 28. Kc2 {[%emt 0:00:04]} Kf8 {[%emt 0:00:10]} 29. Rd1 {[%emt 0:00:05]} Rc7+ {[%emt 0:00:06]} 30. Kd2 {[%emt 0:00:06]} Ke7 {[%emt 0:00:10]} 31. Rc1 {[%emt 0:00:10]} Rd7+ {[%emt 0:00:10]} 32. Ke3 {[%emt 0:00:04]} Ke6 {[%emt 0:00:16]} 33. f4 {[%emt 0:00:33]} f6 {[%emt 0:02:08]} 34. f5+ {[%emt 0:01:40]} Ke7 {[%emt 0:00:50]} 35. Rc2 {[%emt 0:00:15]} Kf7 {[%emt 0:03:03]} 36. g4 {[%emt 0:00:50]} g6 {[%emt 0:00:47]} 37. h4 {[%emt 0:05:04]} gxf5 {[%emt 0:00:52]} 38. gxf5 {[%emt 0:00:50]} Rd1 {[%emt 0:00:52]} 39. Rc7+ {[%emt 0:00:17]} Kg8 {[%emt 0:00:09]} 40. Rxb7 {[%emt 0:01:48]} Rh1 {[%emt 0:01:38]} 41. Ra7 {[%emt 0:01:55]} Rxh4 {[%emt 0:00:10]} 42. Rxa6 {[%emt 0:00:04]} Kf7 {[%emt 0:00:17]} 43. Ra7+ {[%emt 0:00:03]} Ke8 {[%emt 0:00:28]} 44. b4 {[%emt 0:00:06]} Rh1 {[%emt 0:00:53]} 45. b5 {[%emt 0:00:10]} Rb1 {[%emt 0:00:08]} 46. a4 {[%emt 0:00:02]} h5 {[%emt 0:00:28]} 47. Rh7 {[%emt 0:00:05]} Rb4 {[%emt 0:00:18]} 48. Kf4 {[%emt 0:00:39]} h4 {[%emt 0:00:55]} 49. Rxh4 {[%emt 0:00:57]} Rxa4 {[%emt 0:00:10]} 50. b6 {[%emt 0:00:20]} Rb4 {[%emt 0:00:38]} 51. b7 {[%emt 0:00:03]} Rxb7 {[%emt 0:00:08]} 52. Rh8+ {[%emt 0:00:06]} Kd7 {[%emt 0:00:44]} 53. Rh7+ {[%emt 0:00:02]} Kc6 {[%emt 0:00:00]} 54. Rxb7 {[%emt 0:00:02]} Kxb7 {[%emt 0:00:06]} 55. e5 {[%emt 0:00:02]} fxe5+ {[%emt 0:00:22]} 56. Kxe5 {[%emt 0:00:04]} Kc7 {[%emt 0:00:32]} 57. Kf6 {[%emt 0:00:06]} Kd8 {[%emt 0:00:08]} 58. Kg7 {[%emt 0:00:03]} 1-0

[Event "XVI Memorial Lezcano Montalvo 2024"]
[Site "Gran Canaria"]
[Date "2024.03.23"]
[Round "1.36"]
[White "Morell Rojas, Samuel"]
[Black "Fernandez Manrique, Agustin"]
[Result "0-1"]
[ECO "B07"]
[WhiteElo "1590"]
[BlackElo "2017"]
[Annotator "RC"]
[PlyCount "72"]
[EventDate "2024.03.23"]
[EventType "swiss"]
[EventCountry "ESP"]
[SourceTitle "playchess.com"]
[Source "ChessBase"]
[SourceQuality "1"]
[TimeControl "5400+30"]

1. e4 {[%emt 0:00:03]} d6 {[%emt 0:00:10]} 2. d4 {[%emt 0:00:09]} Nf6 {[%emt 0:00:08]} 3. Bd3 {[%emt 0:00:27]} e5 {[%emt 0:00:17]} 4. dxe5 {[%emt 0:00:23]} dxe5 {[%emt 0:00:08]} 5. Nf3 {[%emt 0:00:10]} Nbd7 {[%emt 1:32:17]} 6. O-O {[%emt 0:00:33]} Be7 {[%emt 0:00:00]} 7. Nc3 {[%emt 0:00:25]} c6 {[%emt 0:00:00]} 8. Be3 {[%emt 0:01:02]} Ng4 {[%emt 0:00:00]} 9. Bc4 {[%emt 0:01:23]} Nxe3 {[%emt 0:00:00]} 10. fxe3 {[%emt 0:00:19]} O-O {[%emt 0:00:00]} 11. Nd2 {[%emt 0:02:46]} Bc5 {[%emt 0:00:00]} 12. Qf3 {[%emt 0:02:58]} Nf6 {[%emt 0:00:00]} 13. Qg3 {[%emt 0:00:35]} Qxd2 {[%emt 0:00:00]} 14. Rxf6 {[%emt 0:07:46]} Qxe3+ {[%emt 0:00:00]} 15. Qxe3 {[%emt 0:01:20]} Bxe3+ {[%emt 0:00:00]} 16. Rf2 {[%emt 0:00:05]} Be6 {[%emt 0:00:00]} 17. Bd3 {[%emt 0:01:16]} Rad8 {[%emt 0:00:00]} 18. Kf1 {[%emt 0:01:11]} Bxf2 {[%emt 0:00:00]} 19. Kxf2 {[%emt 0:00:05]} g6 {[%emt 0:00:00]} 20. Re1 {[%emt 0:01:31]} Kg7 {[%emt 0:00:00]} 21. h3 {[%emt 0:01:01]} b5 {[%emt 0:00:00]} 22. a3 {[%emt 0:00:16]} h5 {[%emt 0:00:00]} 23. h4 {[%emt 0:00:19]} f5 {[%emt 0:00:00]} 24. exf5 {[%emt 0:00:44]} Bxf5 {[%emt 0:00:00]} 25. Bxf5 {[%emt 0:00:46]} Rxf5+ {[%emt 0:00:00]} 26. Kg3 {[%emt 0:00:45]} Rd2 {[%emt 0:00:00]} 27. Re2 {[%emt 0:00:52]} Rxe2 {[%emt 0:00:00]} 28. Nxe2 {[%emt 0:00:05]} Kf6 {[%emt 0:00:00]} 29. Nc3 {[%emt 0:00:41]} Rf4 {[%emt 0:00:00]} 30. Kh3 {[%emt 0:02:54]} Kf5 {[%emt 0:00:00]} 31. Kg3 {[%emt 0:01:12]} Rc4 {[%emt 0:00:00]} 32. Nd1 {[%emt 0:01:54]} Re4 {[%emt 0:00:00]} 33. Nc3 {[%emt 0:00:53]} Rd4 {[%emt 0:00:00]} 34. Na2 {[%emt 0:01:16]} a5 {[%emt 0:00:00]} 35. Nc3 {[%emt 0:01:12]} Rd2 {[%emt 0:00:00]} 36. Kf3 {[%emt 0:00:44]} Rxc2 {[%emt 0:00:00]} 0-1